Cogmind - Beta 14 @@@ ROGUE MODE // 2025.04.27 @ 08:36:33 Player: Glogmind Result: Destroyed by D-53 Grenadier with Mini Grenade Launcher Performance ------------- Evolutions (0) 0 Regions Visited (2) 400 Robots Destroyed (87) 435 Value Destroyed (947) 947 Prototype IDs (0) 0 Alien Tech Used (0) 0 Bonus (-16) -16 TOTAL SCORE: 1766 Bonus ------- High Alert Combat Kills 2 Friendly Fire -18 Cogmind --------- Core Integrity 0/250 Matter 251/300 Energy 91/100 System Corruption 0% Temperature Warning (390) Movement Core (350) Ox6 Location -10/Mines Parts ------- > --- POWER (1) -------- (None) > --- PROPULSION (2) --- (None) > --- UTILITY (2) ------ Large Storage Unit > --- WEAPON (2) ------- (None) > --- INVENTORY (15) --- Ion Engine Improved Treads Improved Treads Medium Matter Pod (100) Large Matter Pod (150) Sensor Array Signal Interpreter Signal Interpreter Signal Interpreter Seismic Detector Heavy Assault Rifle Heavy Assault Rifle Heavy Assault Rifle Heavy Assault Rifle Mining Claw Peak State ------------ > --- POWER ------------ Ion Engine > --- PROPULSION ------- Improved Treads Improved Treads > --- UTILITY ---------- Improved Heat Sink Large Storage Unit > --- WEAPON ----------- Beam Cannon Beam Cannon > --- INVENTORY -------- Ion Engine Improved Treads Improved Treads Heat Sink Large Matter Pod Sensor Array Signal Interpreter Signal Interpreter Signal Interpreter Seismic Detector Heavy Assault Rifle Heavy Assault Rifle Heavy Assault Rifle Heavy Assault Rifle Mining Claw [Rating: 13] Favorites ----------- Power Ion Engine Engine Ion Engine Propulsion Improved Treads Treads Improved Treads Leg Aluminum Leg Utility Large Storage Unit Device Improved Heat Sink Storage Large Storage Unit Weapon Beam Cannon Energy Gun Small Laser Energy Cannon Beam Cannon Ballistic Gun Light Assault Rifle Slashing Weapon Mining Claw Build | -11 -10 -10 ------- Run | Yrd Mat Min Slots Evolved . | . . . Power . | . . . Propulsion . | . . . Utility . | . . . Weapon . | . . . Parts Attached 13 | 3 10 . Power 1 | . 1 . Engine 1 | . 1 . Core . | . . . Reactor . | . . . Propulsion 4 | 2 2 . Treads 4 | 2 2 . Leg . | . . . Wheel . | . . . Hover . | . . . Flight . | . . . Utility 5 | 1 4 . Device 3 | 1 2 . Storage 2 | . 2 . Processor . | . . . Hackware . | . . . Protection . | . . . Artifact . | . . . Weapon 3 | . 3 . Energy Gun . | . . . Energy Cannon 2 | . 2 . Ballistic Gun . | . . . Ballistic Cannon . | . . . Launcher . | . . . Special Weapon . | . . . Impact Weapon . | . . . Slashing Weapon 1 | . 1 . Piercing Weapon . | . . . Special Melee Weapon . | . . . Unidentified Prototypes . | . . . Parts Lost 6 | . . 6 Power 1 | . . 1 Propulsion 2 | . . 2 Utility 1 | . . 1 Weapon 2 | . . 2 Highest Loss Streak 6 | . . 6 To Critical Strikes . | . . . Average Slot Usage (%) 99 | . 99 95 Engine 14 | . 14 14 Treads 27 | . 28 25 Device 13 | . 14 12 Storage 14 | . 14 14 Energy Cannon 27 | . 27 26 Peak Build Rating 13 | 7 13 13 Average Rating 12 | 6 12 12 On Entrance 8 | 6 7 13 Naked Turns . | . . . Heaviest Build 32 | 13 32 32 Greatest Support 46 | 40 46 46 Greatest Overweight (x) . | . . . Average Overweight (x) . | . . . Largest Inventory Capacity 15 | 8 15 15 Average Capacity 14 | 8 14 15 Most Carried 15 | 6 15 15 Average Carried 13 | 6 13 15 Final Capacity 15 | 8 15 15 Final Carried 15 | 6 15 15 Class Distribution -------------------- 100% | Mutant Dominant Class ---------------- Mutant | -10/Materials Mutant | -10/Mines Resources | -11 -10 -10 ----------- Run | Yrd Mat Min Matter Collected 585 | 206 379 . Remotely . | . . . Salvage Created 3367 | 12 3208 147 Parts 167 | 3 160 4 Haulers Intercepted 2 | . 2 . Recyclers Shooed 10 | . 10 . Parts Field Recycled . | . . . Retrieved Matter . | . . . Parts Self-Destructed . | . . . Prevented . | . . . Kills | -11 -10 -10 ------- Run | Yrd Mat Min Combat Hostiles Destroyed 26 | . 18 8 Guns 3 | . 3 . Cannons 17 | . 11 6 AOE 3 | . 3 . Classes Destroyed 11 | 1 8 2 Worker 29 | . 29 . Builder 34 | . 34 . Tunneler 3 | 1 2 . Hauler 2 | . 2 . Recycler 17 | . 17 . Operator 1 | . 1 . Watcher 3 | . 3 . Swarmer 9 | . 9 . Grunt 11 | . 9 2 Demolisher 1 | . . 1 Assembled 5 | . . 5 Best Kill Streak 6 | 1 5 6 Combat Bots Only 6 | . 3 6 Max Kills in Single Turn 2 | 1 2 1 Gunslinging . | . . . Exploded 2 | . 2 . Melee . | . . . Uniques/NPCs Destroyed . | . . . Combat | -11 -10 -10 -------- Run | Yrd Mat Min Hostile Shots Fired 106 | . 76 30 Missed 28 | . 26 2 Damage Taken 1318 | . 622 696 Core 263 | . 94 169 Absorbed by Shields . | . . . Core Remaining (%) 100 | 100 . . Volleys Fired 272 | 5 248 19 Largest 2 | 2 2 2 Hottest 120 | 60 120 120 Shots Fired 539 | 10 496 33 Gun 20 | 10 10 . Cannon 519 | . 486 33 Launcher . | . . . Special . | . . . Kinetic 10 | 5 5 . Thermal 529 | 5 491 33 Explosive . | . . . Electromagnetic . | . . . Robot Hit Streak 13 | 3 13 4 Robot Miss Streak 6 | 1 6 4 Penetration Max . | . . . Secondary Targets 2 | . 2 . Max Gunslinging Chain 1 | . 1 . Shots Hit Robots 233 | 7 207 19 Core Hits 115 | 1 104 10 Critical Kills 4 | . 2 2 Critical Parts Destroyed . | . . . Critical Strikes 4 | . 2 2 Meltdown 4 | . 2 2 Melee Attacks 2 | . 2 . Impact . | . . . Slashing 2 | . 2 . Piercing . | . . . Sneak Attacks . | . . . Combat Hostiles . | . . . Follow-up Attacks . | . . . Damage Inflicted 4722 | 72 4226 424 Guns 145 | 72 73 . Cannons 4221 | . 3797 424 Explosions 353 | . 353 . Melee . | . . . Ramming 3 | . 3 . Kinetic 36 | 16 20 . Thermal 4683 | 56 4203 424 Explosive . | . . . Electromagnetic . | . . . Impact . | . . . Slashing . | . . . Piercing . | . . . Highest Corruption . | . . . Average Corruption . | . . . Corruption Purged . | . . . Corruption Blocked . | . . . Overload Shots . | . . . Overflow Damage 104 | . 91 13 Projectiles 55 | . 42 13 Explosions 49 | . 49 . Melee . | . . . Knockbacks . | . . . Impact . | . . . Kinetic . | . . . Secondary . | . . . Self-Inflicted Damage 124 | . 124 . Shots 2 | . 2 . Rammed 2 | . 2 . Targets Rammed 2 | . 2 . Kicked . | . . . Crushed . | . . . Highest Temperature 390 | 20 292 390 Average Temperature 51 | 13 44 167 Received Heat Transfer 224 | . 126 98 Effects 1 | . . 1 Matter Decay 1 | . . 1 Siege Activations . | . . . Robots Corrupted . | . . . Combat Hostiles . | . . . Parts Fried . | . . . Impact Corruptions . | . . . Robots Melted 4 | . 2 2 Combat Hostiles 3 | . 1 2 Parts Melted 22 | . 20 2 Heat Transferred 9430 | 125 8417 888 Parts Sabotaged . | . . . Parts Stolen . | . . . Parts Stripped . | . . . Power Chain Reactions . | . . . Alert | -11 -10 -10 ------- Run | Yrd Mat Min Peak Influence 450 | 5 450 235 Initial 175 | . 3 175 Average 189 | 2 190 210 Maximum Alert Level 2 | . 2 1 Low Security (%) 64 | 100 64 31 Level 1 29 | . 28 68 Level 2 6 | . 6 . Level 3 . | . . . Level 4 . | . . . Level 5 . | . . . High Security . | . . . Max Security . | . . . Squads Dispatched 3 | . 3 . Investigation 2 | . 2 . Extermination . | . . . Reinforcement 1 | . 1 . Assault . | . . . Garrison . | . . . Intercept . | . . . Searches Triggered . | . . . Construction Impeded . | . . . Haulers Reinforced . | . . . Active Scanning Responses . | . . . Cargo Convoy Interrupts . | . . . Stealth | -11 -10 -10 --------- Run | Yrd Mat Min Distress Signals . | . . . Communications Jammed . | . . . Distress Signals . | . . . Times Spotted 48 | . 24 24 Peak Tracking Total 16 | . 4 16 Tactical Retreats 1 | . . 1 Traps | -11 -10 -10 ------- Run | Yrd Mat Min Traps Triggered 2 | . 2 . Indirectly . | . . . Trap Hack Attempts . | . . . Triggered . | . . . Disarmed . | . . . Reprogrammed . | . . . Reused . | . . . Traps Extracted . | . . . Installed . | . . . Triggered 1 | . . 1 Machines | -11 -10 -10 ---------- Run | Yrd Mat Min Machines Disabled 11 | . 11 . Max in Single Turn 4 | . 4 . Machines Repaired . | . . . Machines Dismantled . | . . . Machines Sabotaged . | . . . Overloaded Fab Kills . | . . . Hacking | -11 -10 -10 --------- Run | Yrd Mat Min Machines Accessed 9 | . 9 . Terminals 7 | . 7 . Fabricators . | . . . Repair Stations . | . . . Recycling Units 2 | . 2 . Scanalyzers . | . . . Garrison Access . | . . . Total Hacks 15 | . 15 . Successful 11 | . 11 . Failed 4 | . 4 . Catastrophic . | . . . Database Lockouts . | . . . Manual 11 | . 11 . Terminals 13 | . 13 . Fabricators . | . . . Repair Stations . | . . . Recycling Units 2 | . 2 . Scanalyzers . | . . . Garrison Access . | . . . Terminal Hacks 1 | . 1 . Robot Analysis 1 | . 1 . Fabricator Hacks . | . . . Repair Station Hacks . | . . . Recycling Unit Hacks 2 | . 2 . Retrieve Components 2 | . 2 . Scanalyzer . | . . . Garrison Access Hacks . | . . . Unauthorized Hacks 8 | . 8 . Terminals 8 | . 8 . Botnet 3 | . 3 . Skim 5 | . 5 . Fabricators . | . . . Repair Stations . | . . . Recycling Units . | . . . Scanalyzers . | . . . Garrison Access . | . . . Data Cores Recovered . | . . . Used . | . . . Hacking Detections 7 | . 7 . Full Trace Events . | . . . Feedback Events . | . . . Feedback Blocked . | . . . Robot Schematics Acquired . | . . . Robots Built . | . . . Authchips . | . . . Time . | . . . Total Robot Build Rating . | . . . Part Schematics Acquired . | . . . Parts Built . | . . . Authchips . | . . . Time . | . . . Total Part Build Rating . | . . . Parts Repaired . | . . . Time . | . . . Parts Recycled . | . . . Recycled Matter . | . . . Retrieved Matter . | . . . Retrieved Components 4 | . 4 . Parts Scanalyzed . | . . . Part Schematics Acquired . | . . . Parts Damaged . | . . . Bothacking | -11 -10 -10 ------------ Run | Yrd Mat Min Used RIF Installer . | . . . Robots Hacked . | . . . Non-combat . | . . . Combat . | . . . Robot Hacks Applied . | . . . Relay Couplers Released . | . . . Fabnet Peak Effective % . | . . . Robots Rewired . | . . . Allies Hacked . | . . . Hacks Repelled . | . . . Allies | -11 -10 -10 -------- Run | Yrd Mat Min Total Allies 3 | . . 3 Largest Group 3 | . . 3 Highest-Rated Group 40 | . . 40 Highest-Rated Ally 16 | . . 16 Total Orders . | . . . Ally Attacks 23 | . . 23 Total Damage 265 | . . 265 Kills 4 | . . 4 Allies Corrupted . | . . . Allies Melted . | . . . Intel | -11 -10 -10 ------- Run | Yrd Mat Min Robot Analysis Total 1 | . 1 . Derelict Logs Recovered . | . . . Drone Launches . | . . . Drone Recoveries . | . . . Exploration | -11 -10 -10 ------------- Run | Yrd Mat Min Turns Passed 5296 | 26 5136 134 Spaces Moved 940 | 5 892 43 Core . | . . . Treads 938 | 3 892 43 Legs 2 | 2 . . Wheels . | . . . Hover . | . . . Flight . | . . . Fastest Speed 120 | 120 160 160 Average Speed 159 | 144 160 160 Slowest Speed 160 | 160 160 160 Overloaded Moves . | . . . Propulsion Burnouts . | . . . Robots Hopped . | . . . Cave-ins Triggered . | . . . Exploration Rate (%) 38 | 2 99 15 Regions Visited 2 Branch Regions 1 Pre-discovered Areas 2 | . 2 . Known Exits Taken . | . . . Unknown Exits Taken 2 | 1 1 . Scrap Searched . | . . . Spaces Dug 1 | . 1 . Terrain Destroyed 49 | . 49 . Melee 1 | . 1 . Projectile . | . . . AOE 48 | . 48 . Terrain Rammed . | . . . Walls Destroyed . | . . . Machines Disabled . | . . . Actions | -11 -10 -10 --------- Run | Yrd Mat Min Total 4199 | 13 4110 76 Wait 2930 | 1 2915 14 Move 938 | 4 891 43 Hop . | . . . Pick Up 20 | . 20 . Fast Attach 4 | 1 3 . Attach . | . . . Detach 2 | . 2 . Swap 9 | 2 7 . Drop 20 | . 20 . Fire 272 | 5 248 19 Melee 2 | . 2 . Ram . | . . . Kick . | . . . Crush 2 | . 2 . Escape Stasis . | . . . Rewire . | . . . Trap . | . . . Miscellaneous . | . . . Route ------- -11/Scrapyard -10/Materials (discovered 5 exits: *Mat x3 / [*Min] / Sub) -10/Mines (discovered 4 exits: Mat x2 / Exi / Sub) History --------- Turn | Location | Event 16 | -11/Scrapyard | Discovered new exit (range 2) 27 | -11/Scrapyard | Entered Materials 304 | -10/Materials | Build established: Mutant 387 | -10/Materials | Discovered new exit (range 15) 425 | -10/Materials | Discovered new exit (range 9) 593 | -10/Materials | Discovered new exit (range 15) 1002 | -10/Materials | Discovered new exit (range 15) 1120 | -10/Materials | Identified exit to Subcaves 1195 | -10/Materials | Learned location of 2 exits from Mines 1259 | -10/Materials | Learned Storage emergency access door positions 1312 | -10/Materials | Learned location of Storage (-7) 1356 | -10/Materials | Learned location of 2 exits from Mines 1390 | -10/Materials | Learned Storage emergency access door positions 1436 | -10/Materials | Learned location of Subcaves (-10) 1557 | -10/Materials | Learned location of 2 exits from Subcaves 5163 | -10/Materials | Entered Mines 5164 | -10/Mines | Identified exit to Materials 5164 | -10/Mines | Identified exit to Exiles 5210 | -10/Mines | Assembled infested the area 5215 | -10/Mines | Assisted by a Guerilla fighting off Assembled 5232 | -10/Mines | Assisted by bots powering up and referring to "LRC-V3" 5286 | -10/Mines | Core integrity fell below 50% 5296 | -10/Mines | Core integrity fell below 20% 5297 | -10/Mines | Destroyed by D-53 Grenadier with Mini Grenade Launcher Last Messages --------------- as-36110 destroyed. as-29875 destroyed. as-35298 destroyed. as-41986 destroyed. as-50420 destroyed. as-00491 destroyed. as-34076 destroyed. as-01220 destroyed. as-13674 destroyed. The unstable cave ceiling collapses. Imp. Heat Sink destroyed. Imp. Treads destroyed. Beam Cannon destroyed. The unstable cave ceiling collapses. Ion Engine destroyed. The unstable cave ceiling collapses. Overheating: Matter decay (-54). The unstable cave ceiling collapses. D-53 Grenadier suffers critical hit (Meltdown). Beam Cannon destroyed. Map ----- +----------------------------------------------------+ | ??????????????????????????????? | | ??????????????????????????????? | | ??????????????????????????????? | | ??????????????????????????????? | | ??????????????????????????????? | | ??????????????????????????????? | | ??????????????????????????????? | | ??????????????????????????????? | | ??????????????????????????????? | | ??????????????????????????????? | | ???????>??????????????????????? | | ??????????????????????????????? | | ??????????????????????????????? | | ??????????????????????????????? | | ??????????????????????????????? | | ??????????????????????????????? | | ??????????????????????????????? | | ????#####?????????????????????? | | ????# #?????????????????????? | | ????# #?????????????????????? | | ???## ##????????????????????? | | ??## ##?#?????????????????? | | ?## # #### # ?????????? | | ?# # # ????????? | | ?# d* % #???????? | | ?# @ ]%* $ ???????? | | ?# #= t ???????? | | ?# # %????????? | | ?## a ##?????????????? | | ??## ####*###?????????????? | | ???# #????##??????????????? | | ???## ##???????????????????? | | ????### #???????????????????? | | ??????## #???????????????????? | | ??????##% ### #???????????????? | | ?????## #???????????????? | | ?????# ######???????????????? | | ?????# #????????????????????? | | ????## #######??????????????? | | ????# #?????????? | | ????# #######??????????????? | | ????## ##????????????????????? | | ?????## #?????????????????????? | | ??????# #?????????????????????? | | ??????# ###???????????????????? | | ??????# #???????????????????? | | ????### #???????????????????? | | ???## #???????????????????? | | ??## #???????????????????? | | ??# #???????????????????? | +----------------------------------------------------+ Best States ------------- Heat Dissipation 39 Energy Generation 10 Energy Capacity 250 Matter Stores 300 Matter Capacity 300 Sight Range 16 Terrain Scan Density 10 Evasion (%) 45 Recoil Reduction 2 Item Schematics ----------------- None Robot Schematics ------------------ None Fabricated ------------ Nothing Alien Tech Used ----------------- None Achievements -------------- None Challenges ------------ None Game ------ Seed MobileStormBeam Manual? 0 Play Time 00:29:30 Cumulative 61.9 hours Start 2025.04.26 @ 21:26:19 End 2025.04.27 @ 08:36:33 Sessions 3 Manual Loads 0 Difficulty Rogue Special Mode None Game No. 107 Rogue 107 Adventurer 0 Explorer 0 Win Type - Total 1 Types 1/0/0/0/0/0/0/0/0 Lore% 16 Gallery% 45 Achievement% 38 Wizard Run 0 Options --------- Layout 1 ASCII 0 Keyboard 0 Movement Mouse Keybinds 0 Fullscreen 1 Font 24/Smallcaps Map View 50x40 Zoom Use 0% Tactical HUD 0 Map Filters NONE Filters NONE Steam 0 RUN: 495d78c5-d98e-44e9-9502-8be1ae27503a